bitfinex-derivatives/quotes_SOLF0:USTF0_20250528
["timestamp","ask_amount","ask_price","bid_price","bid_amount"]
[1748453813136,30.12,170.55,170.53,5.8617]
[1748453813541,30.12,170.55,170.52,0.03844071]
[1748453814450,30.12,170.55,170.53,5.8619]
[1748453815051,30.12,170.55,170.52,0.03844071]
[1748453815245,30.12,170.55,170.54,5.8616]
[1748453815847,0.04334126,170.57,170.54,5.8616]
[1748453816045,0.04334126,170.57,170.53,5.8618]
[1748453816246,0.04334126,170.57,170.52,0.03844071]
[1748453816452,5.861,170.56,170.52,0.03844071]
[1748453816847,0.04334126,170.57,170.52,0.03844071]
[1748453817156,0.04334126,170.57,170.52,5.90064071]
[1748453817452,0.04334126,170.57,170.52,0.03844071]
[1748453818652,5.8615,170.55,170.52,5.90074071]
[1748453819046,0.04334126,170.57,170.52,5.90074071]
[1748453819047,0.04334126,170.57,170.52,0.03844071]
[1748453820044,0.04334126,170.57,170.54,5.8614]
[1748453820248,0.04334126,170.57,170.52,0.03844071]
[1748453820249,873.7518,170.67,170.52,0.03844071]
[1748453820442,10.70935148,170.65,170.51,2.0631]
[1748453820751,32.0242,170.66,170.51,2.0631]
[1748453820955,10.70935148,170.62,170.51,2.0631]
[1748453821153,5.8605,170.58,170.51,2.0631]
[1748453821451,0.04133445,170.56,170.53,0.04278047]
[1748453821847,0.04133445,170.56,170.55,5.8611]
[1748453822054,30.12,170.61,170.53,0.04278047]
[1748453822243,30.12,170.61,170.58,5.8599]
[1748453823153,30.16332721,170.61,170.58,5.90215203]
[1748453823350,30.16332721,170.61,170.59,5.8599]
[1748453824252,36.02262721,170.61,170.58,5.90245203]
[1748453824852,30.16332721,170.61,170.59,5.8599]
[1748453825051,30.16332721,170.61,170.58,0.04225203]
[1748453825644,0.04332721,170.61,170.58,0.04225203]
[1748453825847,0.04332721,170.61,170.6,5.8596]
[1748453834168,0.04332721,170.61,170.59,5.8597]
[1748453835163,0.04332721,170.61,170.58,0.04225203]
[1748453835361,30.16332721,170.61,170.58,0.04225203]
[1748453835860,5.86,170.59,170.58,0.04225203]
[1748453837169,5.8598,170.6,170.58,0.04225203]
[1748453837463,36.02272721,170.61,170.58,0.04225203]
[1748453837665,30.16332721,170.61,170.58,0.04225203]
[1748453838480,0.04332721,170.61,170.6,5.8597]
[1748453839168,0.04332721,170.61,170.58,0.04225203]
[1748453839472,30.16332721,170.61,170.58,0.04225203]
[1748453839664,5.8599,170.6,170.58,0.04225203]
[1748453839961,30.16332721,170.61,170.58,0.04225203]
[1748453840163,5.8597,170.6,170.58,0.04225203]
[1748453841470,5.86,170.59,170.58,0.04225203]
[1748453845368,5.8598,170.6,170.58,0.04225203]
[1748453845575,32.17932721,170.61,170.58,0.04225203]
[1748453845774,30.16332721,170.61,170.58,0.04225203]
[1748453846672,30.16332721,170.61,170.59,5.8597]
[1748453848076,30.16332721,170.61,170.58,0.04225203]
[1748453848875,5.8599,170.6,170.58,0.04225203]
[1748453849679,36.02272721,170.61,170.58,5.90255203]
[1748453851071,5.8597,170.6,170.58,5.90255203]
[1748453851680,36.02282721,170.61,170.58,5.90255203]
[1748453852477,36.02282721,170.61,170.59,5.86]
[1748453852678,30.16332721,170.61,170.59,5.86]
[1748453852881,30.16332721,170.61,170.58,0.04225203]
[1748453853471,5.8598,170.6,170.58,0.04225203]
[1748453854176,36.02282721,170.61,170.58,5.90255203]
[1748453856579,30.16332721,170.61,170.58,0.04225203]
[1748453857181,5.86,170.59,170.58,0.04225203]
[1748453863187,5.8609,170.57,170.54,5.8617]
[1748453864289,5.90489751,170.57,170.54,5.89981355]
[1748453864586,5.90489751,170.57,170.54,0.03811355]
[1748453864587,5.8611,170.56,170.54,0.03811355]
[1748453864787,31.06399751,170.57,170.54,0.03811355]
[1748453865190,31.06399751,170.57,170.55,5.8613]
[1748453865592,31.06399751,170.57,170.54,0.03811355]
[1748453865794,31.06399751,170.57,170.55,5.8612]
[1748453866185,36.92479751,170.57,170.54,0.03811355]
[1748453866893,36.92479751,170.57,170.54,5.89981355]
[1748453867591,31.06399751,170.57,170.55,5.8613]
[1748453867793,31.06399751,170.57,170.54,0.03811355]
[1748453867996,36.92499751,170.57,170.54,5.89971355]
[1748453868291,31.06399751,170.57,170.54,0.03811355]
[1748453869190,5.8611,170.56,170.54,0.03811355]
[1748453869397,31.06399751,170.57,170.54,0.03811355]
[1748453870289,5.8614,170.55,170.54,0.03811355]
[1748453870897,5.8611,170.56,170.54,0.03811355]
[1748453871094,31.06399751,170.57,170.54,0.03811355]
[1748453871801,5.8614,170.55,170.54,0.03811355]
[1748453877105,31.06399751,170.57,170.54,0.03811355]
[1748453877407,0.04399751,170.57,170.54,0.03811355]
[1748453877604,0.04399751,170.57,170.56,5.8611]
[1748453880013,30.8,170.62,170.54,0.03811355]
[1748453880814,5.8599,170.6,170.54,0.03811355]
[1748453881009,0.04272546,170.59,170.54,0.03811355]
[1748453881916,5.90282546,170.59,170.57,5.8607]
[1748453882415,5.90282546,170.59,170.56,5.8609]
[1748453883213,5.8604,170.58,170.56,5.8609]
[1748453883412,0.04272546,170.59,170.54,0.03811355]
[1748453883809,5.90292546,170.59,170.54,0.03811355]
[1748453884119,0.04272546,170.59,170.54,0.03811355]
[1748453884714,0.04272546,170.59,170.57,5.8606]
[1748453885417,0.04272546,170.59,170.58,5.8604]
[1748453885616,0.04272546,170.59,170.54,0.03811355]
[1748453885817,5.8613,170.56,170.54,0.03811355]
[1748453886225,0.04272546,170.59,170.54,0.03811355]
[1748453886516,5.8614,170.55,170.54,0.03811355]
[1748453891510,5.8614,170.55,170.5,1.70526]
[1748453891511,5.8625,170.52,170.5,1.70526]
[1748453891713,10.70935148,170.56,170.5,1.70526]
[1748453891714,30.8,170.54,170.5,1.70526]
[1748453892319,5.8626,170.52,170.5,1.70526]
[1748453892510,0.03963032,170.53,170.5,1.70526]
[1748453892913,5.8628,170.51,170.5,1.70526]
[1748453895821,0.03963032,170.53,170.5,1.70526]
[1748453895822,5.8626,170.52,170.5,1.70526]
[1748453897625,0.03963032,170.53,170.5,1.70526]
[1748453898330,0.03963032,170.53,170.52,5.8624]
[1748453899225,0.03963032,170.53,170.51,5.8627]
[1748453900631,0.03963032,170.53,170.5,7.56826]
[1748453900832,0.03963032,170.53,170.5,1.70526]
[1748453901529,5.8627,170.52,170.5,1.70526]
[1748453903326,0.03963032,170.53,170.5,1.70526]
[1748453904033,5.8627,170.52,170.5,1.70526]
[1748453904536,0.03963032,170.53,170.5,1.70526]
[1748453904933,5.8624,170.52,170.5,1.70526]
[1748453905935,5.90193032,170.53,170.5,7.56836]
[1748453906937,0.03963032,170.53,170.51,5.8627]
[1748453908131,0.03963032,170.53,170.51,5.8628]
[1748453909239,5.90173032,170.53,170.51,5.8628]
[1748453910732,5.90173032,170.53,170.5,7.56826]
[1748453911038,5.90173032,170.53,170.5,1.70526]
[1748453912034,5.90173032,170.53,170.51,5.8627]
[1748453915936,0.03963032,170.53,170.52,5.8624]
[1748453916842,0.03963032,170.53,170.51,5.8627]
[1748453917139,0.03963032,170.53,170.5,1.70526]
[1748453917341,0.03963032,170.53,170.51,5.8628]
[1748453917538,0.03963032,170.53,170.5,1.70526]
[1748453917838,5.8628,170.52,170.5,1.70526]
[1748453918036,0.03963032,170.53,170.5,1.70526]
[1748453918231,5.8626,170.52,170.5,1.70526]
[1748453918634,0.03963032,170.53,170.5,1.70526]
[1748453918938,30.4,170.52,170.42,30.4]
[1748453919341,10.70935148,170.51,170.44,5.8651]
[1748453919641,10.70935148,170.51,170.42,30.4]
[1748453919843,5.8641,170.48,170.45,5.8647]
[1748453920143,0.03798232,170.48,170.45,0.04096509]
[1748453920638,0.03798232,170.48,170.46,5.8642]
[1748453921745,0.03798232,170.48,170.45,0.04096509]
[1748453922044,30.43798232,170.48,170.45,0.04096509]
[1748453922246,5.8644,170.47,170.45,0.04096509]
[1748453922441,30.43798232,170.48,170.45,0.04096509]
[1748453922645,0.03798232,170.48,170.45,0.04096509]
[1748453923350,0.03798232,170.48,170.46,5.8643]
[1748453925746,0.03798232,170.48,170.45,0.04096509]
[1748453925747,5.8642,170.47,170.45,5.90576509]
[1748453927149,5.90188232,170.48,170.45,5.90576509]
[1748453927350,0.03798232,170.48,170.45,0.04096509]
[1748453927953,5.8644,170.47,170.45,0.04096509]
[1748453928349,0.03798232,170.48,170.45,0.04096509]
[1748453928551,5.8642,170.47,170.45,0.04096509]
[1748453928950,5.90188232,170.48,170.45,5.90576509]
[1748453929153,5.90188232,170.48,170.45,0.04096509]
[1748453929659,5.90188232,170.48,170.45,5.90566509]
[1748453930150,5.8645,170.46,170.45,0.04096509]
[1748453930547,0.03798232,170.48,170.45,0.04096509]
[1748453930753,5.90208232,170.48,170.45,5.90566509]
[1748453930957,0.03798232,170.48,170.45,0.04096509]
[1748453931252,5.8645,170.46,170.45,0.04096509]
[1748453932851,5.8643,170.47,170.45,0.04096509]
[1748453933258,0.03798232,170.48,170.45,0.04096509]
[1748453934154,5.8645,170.46,170.45,0.04096509]
[1748453939454,5.8658,170.43,170.4,5.8665]
[1748453939863,30.3,170.47,170.4,5.8665]
[1748453940162,10.70935148,170.46,170.4,5.8665]
[1748453940358,5.8662,170.42,170.39,5.8668]
[1748453940562,5.90795699,170.42,170.39,5.91079715]
[1748453940752,5.90795699,170.42,170.39,0.04399715]
[1748453941965,5.90795699,170.42,170.4,5.8666]
[1748453942156,0.04175699,170.42,170.39,0.04399715]
[1748453943070,0.04175699,170.42,170.41,5.8662]
[1748453943768,0.04175699,170.42,170.4,5.8665]
[1748453944268,0.04175699,170.42,170.41,5.8662]
[1748453948472,0.04175699,170.42,170.4,5.8664]
[1748453948671,0.04175699,170.42,170.39,0.04399715]
[1748453948871,0.04175699,170.42,170.41,5.8662]
[1748453949272,0.04175699,170.42,170.39,0.04399715]
[1748453950071,5.90785699,170.42,170.4,5.8664]
[1748453950373,0.04175699,170.42,170.39,0.04399715]
[1748453950571,0.04175699,170.42,170.4,5.8666]
[1748453950871,0.04175699,170.42,170.39,0.04399715]
[1748453951469,0.04175699,170.42,170.4,5.8666]
[1748453952171,5.90765699,170.42,170.4,5.8666]
[1748453954174,0.04175699,170.42,170.4,5.8666]
[1748453955678,5.90785699,170.42,170.4,5.8666]
[1748453956773,0.04175699,170.42,170.41,5.8662]
[1748453961478,5.699e-05,170.42,170.41,5.8662]
[1748453961777,5.699e-05,170.42,170.41,38.2191]
[1748453966983,34.2928,170.53,170.41,38.2129]
[1748453967186,5.863,170.51,170.41,32.3529]
[1748453967479,30.3,170.53,170.47,5.8639]
[1748453967684,30.3,170.53,170.45,30.3]
[1748453967885,5.90035991,170.51,170.47,0.04451906]
[1748453968088,5.90035991,170.51,170.48,5.8638]
[1748453968287,5.90035991,170.51,170.47,0.04451906]
[1748453968688,5.90035991,170.51,170.47,5.90831906]
[1748453969491,5.8632,170.5,170.47,0.04451906]
[1748453970190,5.90025991,170.51,170.48,5.8638]
[1748453970493,0.03735991,170.51,170.47,0.04451906]
[1748453970692,0.03735991,170.51,170.49,5.8632]
[1748453973793,0.03735991,170.51,170.47,0.04451906]
[1748453974294,0.03735991,170.51,170.5,5.8631]
[1748453978792,0.03735991,170.51,170.49,5.8634]
[1748453979187,0.03735991,170.51,170.47,0.04451906]
[1748453979387,0.03735991,170.51,170.5,5.8631]
[1748453979995,0.03735991,170.51,170.49,5.8634]
[1748453981695,0.03735991,170.51,170.5,5.8631]
[1748453993303,0.03735991,170.51,170.49,5.8634]
[1748453994297,0.03735991,170.51,170.48,5.8638]
[1748453994502,0.03735991,170.51,170.47,0.04451906]
[1748453994898,5.8636,170.49,170.47,0.04451906]
[1748453995610,0.03735991,170.51,170.47,0.04451906]
[1748453996208,5.8632,170.5,170.47,0.04451906]
[1748453996601,5.8632,170.5,170.47,5.90861906]
[1748453998404,5.8636,170.49,170.47,5.90861906]
[1748453998911,5.8633,170.5,170.48,5.8638]
[1748453999308,5.90035991,170.51,170.48,5.8638]
[1748453999509,0.03735991,170.51,170.5,5.8631]
[1748454000210,0.03735991,170.51,170.49,5.8633]
[1748454001008,0.03735991,170.51,170.5,5.8631]
[1748454001210,5.90025991,170.51,170.47,0.04451906]
[1748454001808,5.8636,170.49,170.47,0.04451906]
[1748454003013,5.8633,170.5,170.47,0.04451906]
[1748454003614,5.8633,170.5,170.47,5.90851906]
[1748454004016,5.8633,170.5,170.47,0.04451906]
[1748454004317,9.81575991,170.51,170.48,5.8638]
[1748454005417,0.03735991,170.51,170.47,0.04451906]
[1748454005913,0.03735991,170.51,170.5,5.8631]
[1748454007424,0.03735991,170.51,170.49,5.8633]
[1748454007727,0.03735991,170.51,170.47,0.04451906]
[1748454008623,5.8633,170.5,170.47,0.04451906]
[1748454009320,5.90035991,170.51,170.47,0.04451906]
[1748454009722,0.03735991,170.51,170.47,0.04451906]
[1748454010425,5.90045991,170.51,170.48,5.8636]
[1748454012024,5.8632,170.5,170.47,5.90851906]
[1748454013521,5.8632,170.5,170.48,5.8638]
[1748454014330,5.8632,170.5,170.47,5.90851906]
[1748454015225,5.8632,170.5,170.48,5.8637]
[1748454015829,5.8635,170.49,170.47,5.90851906]
[1748454016234,0.03735991,170.51,170.47,5.90851906]
[1748454016419,5.8632,170.5,170.47,5.90851906]
[1748454018026,5.90025991,170.51,170.48,5.8638]
[1748454018223,5.90025991,170.51,170.47,0.04451906]
[1748454018429,0.03735991,170.51,170.47,0.04451906]
[1748454020031,0.03735991,170.51,170.5,5.8631]
[1748454021033,0.03735991,170.51,170.49,5.8633]
[1748454021633,0.03735991,170.51,170.5,5.8631]
[1748454022226,0.03735991,170.51,170.49,5.8633]
[1748454023230,0.03735991,170.51,170.48,5.8637]
[1748454023231,5.90015991,170.51,170.48,5.8637]
[1748454023438,0.03735991,170.51,170.48,5.8637]
[1748454023638,0.03735991,170.51,170.47,0.04451906]
[1748454023834,5.90035991,170.51,170.48,5.8637]
[1748454024241,5.90035991,170.51,170.47,0.04451906]
[1748454024541,5.90035991,170.51,170.48,5.8636]
[1748454025037,5.90035991,170.51,170.49,5.8635]
[1748454025231,0.03735991,170.51,170.47,0.04451906]
[1748454025430,0.03735991,170.51,170.47,6.95085385]
[1748454025842,0.03735991,170.51,170.5,5.8631]
[1748454026441,0.03735991,170.51,170.49,5.8633]
[1748454027231,0.03735991,170.51,170.48,5.8637]
[1748454027438,0.03735991,170.51,170.47,30.26451906]
[1748454027745,0.03735991,170.51,170.47,0.04451906]
[1748454028941,5.8638,170.49,170.47,0.04451906]
[1748454030245,5.8632,170.5,170.47,5.90861906]
[1748454030647,5.8632,170.5,170.47,0.04451906]
[1748454030847,5.8636,170.49,170.47,0.04451906]
[1748454032654,5.8638,170.48,170.47,0.04451906]
[1748454034954,5.8636,170.49,170.47,0.04451906]
[1748454036648,0.03735991,170.51,170.47,0.04451906]
[1748454037462,5.90035991,170.51,170.48,5.8635]
[1748454038056,0.03735991,170.51,170.48,5.8637]
[1748454038552,5.90015991,170.51,170.48,5.8637]
[1748454040756,5.8632,170.5,170.48,5.8637]
[1748454042754,5.90025991,170.51,170.48,5.8637]
[1748454043554,0.03735991,170.51,170.49,5.8632]
[1748454043762,0.03735991,170.51,170.47,0.04451906]
[1748454045265,0.03735991,170.51,170.5,5.8631]
[1748454045463,0.03735991,170.51,170.47,0.04451906]
[1748454045659,5.90045991,170.51,170.48,5.8638]
[1748454045863,0.03735991,170.51,170.47,0.04451906]
[1748454046354,5.90015991,170.51,170.48,5.8636]
[1748454047560,0.03735991,170.51,170.47,0.04451906]
[1748454048771,5.8632,170.5,170.47,0.04451906]
[1748454049568,5.8632,170.5,170.47,5.90851906]
[1748454051166,5.8632,170.5,170.48,5.8638]
[1748454051370,5.90025991,170.51,170.48,5.8638]
[1748454051768,0.03735991,170.51,170.47,0.04451906]
[1748454052865,0.03735991,170.51,170.48,5.8637]
[1748454053077,0.03735991,170.51,170.47,0.04451906]
[1748454054671,0.03735991,170.51,170.49,5.8633]
[1748454055469,0.03735991,170.51,170.5,5.8631]
[1748454064367,0.03735991,170.51,170.49,5.8633]
[1748454064576,0.03735991,170.51,170.47,6.94971976]
[1748454064777,0.03735991,170.51,170.47,0.04451906]
[1748454065482,5.8632,170.5,170.47,5.90851906]
[1748454065981,0.03735991,170.51,170.47,0.04451906]
[1748454066277,5.8632,170.5,170.47,5.90841906]
[1748454066481,0.03735991,170.51,170.47,5.90841906]
[1748454066774,0.03735991,170.51,170.47,0.04451906]
[1748454067580,5.90035991,170.51,170.48,5.8636]
[1748454068579,5.8633,170.5,170.47,5.90861906]
[1748454068886,0.03735991,170.51,170.47,0.04451906]
[1748454069082,5.90035991,170.51,170.48,5.8636]
[1748454069481,0.03735991,170.51,170.48,5.8636]
[1748454069880,5.90025991,170.51,170.48,5.8636]
[1748454070077,0.03735991,170.51,170.47,0.04451906]
[1748454070287,0.03735991,170.51,170.47,5.90851906]
[1748454070678,0.03735991,170.51,170.48,5.8638]
[1748454070875,0.03735991,170.51,170.47,0.04451906]
[1748454071081,5.8633,170.5,170.47,0.04451906]
[1748454071279,5.8633,170.5,170.47,5.90841906]
[1748454072382,5.8635,170.49,170.47,0.04451906]
[1748454072984,5.8638,170.48,170.47,0.04451906]
[1748454074587,5.8636,170.49,170.47,5.90861906]
[1748454074987,0.03735991,170.51,170.47,0.04451906]
[1748454075393,5.8633,170.5,170.48,5.8638]
[1748454075689,5.8633,170.5,170.47,0.04451906]
[1748454075889,0.03735991,170.51,170.47,0.04451906]
[1748454076091,5.8636,170.49,170.47,0.04451906]
[1748454076290,0.03735991,170.51,170.47,0.04451906]
[1748454076686,4.06285991,170.51,170.47,0.04451906]
[1748454078096,5.8637,170.49,170.47,0.04451906]
[1748454079097,4.06285991,170.51,170.47,0.04451906]
[1748454080589,5.8637,170.49,170.47,0.04451906]
[1748454080785,10.79336832,170.49,170.39,1.9636]
[1748454081100,30.2,170.48,170.38,30.2]
[1748454081394,10.79336832,170.46,170.36,5.56205794]
[1748454081600,2.0971,170.45,170.36,5.56205794]
[1748454081792,30.2,170.44,170.38,5.8671]
[1748454081989,0.04012259,170.42,170.39,0.03848264]
[1748454082393,5.8666,170.4,170.39,0.03848264]
[1748454083594,5.8676,170.37,170.36,5.56205794]
[1748454084591,5.8673,170.38,170.36,5.56205794]
[1748454084791,0.04177293,170.38,170.36,5.56205794]
[1748454085097,0.04177293,170.38,170.37,5.8676]
[1748454093002,30.18,170.43,170.41,5.8662]
[1748454094400,30.18,170.43,170.4,5.90354846]
[1748454094601,30.18,170.43,170.4,0.03714846]
[1748454095000,36.0456,170.43,170.4,0.03714846]
[1748454095810,36.0456,170.43,170.4,5.90364846]
[1748454096104,30.18,170.43,170.4,0.03714846]
[1748454097496,5.8662,170.41,170.4,0.03714846]
[1748454099200,5.866,170.42,170.4,0.03714846]
[1748454099797,5.8662,170.41,170.4,0.03714846]
[1748454099998,30.18,170.43,170.4,0.03714846]
[1748454100394,5.866,170.42,170.4,0.03714846]
[1748454101199,5.866,170.42,170.4,5.90354846]
[1748454102202,5.866,170.42,170.4,0.03714846]
[1748454103299,30.18,170.43,170.4,0.03714846]
[1748454103300,5.8662,170.41,170.4,0.03714846]
[1748454104009,5.866,170.42,170.4,0.03714846]
[1748454105011,36.0457,170.43,170.4,0.03714846]
[1748454105213,30.18,170.43,170.4,5.90354846]
[1748454105710,5.8659,170.42,170.4,5.90354846]
[1748454106315,36.0456,170.43,170.41,5.8662]
[1748454107217,36.0456,170.43,170.4,5.90354846]
[1748454107718,5.8659,170.42,170.4,5.90354846]
[1748454108317,5.8659,170.42,170.4,0.03714846]
[1748454109112,5.8659,170.42,170.4,5.90344846]
[1748454109909,36.0456,170.43,170.4,5.90344846]
[1748454110112,36.0456,170.43,170.41,5.8661]
[1748454110311,30.18,170.43,170.4,0.03714846]
[1748454110509,5.866,170.42,170.4,0.03714846]
[1748454111915,5.866,170.42,170.4,5.90354846]
[1748454112617,5.866,170.42,170.4,0.03714846]
[1748454113719,5.8662,170.41,170.4,0.03714846]
[1748454115918,5.866,170.42,170.4,0.03714846]
[1748454117324,5.8662,170.41,170.4,0.03714846]
[1748454118419,5.8671,170.39,170.36,5.56205794]
[1748454118624,40.97336832,170.43,170.36,5.56205794]
[1748454119428,0.03988189,170.41,170.38,0.0332876]
[1748454120230,5.8669,170.39,170.38,0.0332876]
[1748454120425,36.0069,170.39,170.38,0.0332876]
[1748454133936,42.924715,170.39,170.38,0.0332876]
[1748454136133,37.057815,170.39,170.23,11.7446]
[1748454136436,6.917815,170.29,170.23,6.917815]
[1748454136639,12.788415,170.29,170.26,5.8711]
[1748454136838,6.917815,170.29,170.23,6.917815]
[1748454137238,0.03815793,170.28,170.23,6.917815]
[1748454137937,0.03815793,170.28,170.21,30.14]
[1748454139242,0.03815793,170.28,170.27,5.871]
[1748454141834,32.2127,170.37,170.36,5.8679]
[1748454142032,30.16,170.37,170.36,5.8679]
[1748454144140,30.16,170.37,170.35,0.03815793]
[1748454144841,5.8679,170.36,170.35,0.03815793]
[1748454145341,5.8688,170.34,170.31,5.8695]
[1748454146341,0.04262849,170.34,170.31,5.8695]
[1748454146545,0.04262849,170.34,170.3,5.8698]
[1748454146742,30.12,170.33,170.26,30.16]
[1748454147146,5.8695,170.32,170.26,30.16]
[1748454147547,5.8695,170.32,170.24,2.0996]
[1748454147847,0.03825021,170.3,170.24,2.0996]
[1748454148348,5.90845021,170.3,170.24,2.0996]
[1748454148543,0.03825021,170.3,170.24,2.0996]
[1748454148745,30.12,170.29,170.23,5.8721]
[1748454148951,30.12,170.29,170.2,2.0922]
[1748454149145,0.03865213,170.26,170.2,2.0922]
[1748454149541,5.91015213,170.26,170.2,2.0922]
[1748454149850,0.03865213,170.26,170.2,2.0922]
[1748454150750,0.03865213,170.26,170.24,5.872]
[1748454150951,0.03865213,170.26,170.19,30.12]
[1748454152153,0.03865213,170.26,170.23,5.8721]
[1748454152347,0.03865213,170.26,170.19,30.12]
[1748454153253,0.03865213,170.26,170.25,5.8717]
[1748454154753,30.12,170.32,170.28,5.8705]
[1748454155348,4.1342,170.36,170.23,30.12]
[1748454155550,30.12,170.33,170.23,30.12]
[1748454155754,0.03921388,170.3,170.26,0.03865213]
[1748454155955,0.03921388,170.3,170.29,5.87]
[1748454156357,0.03921388,170.3,170.27,5.8708]
[1748454159363,5.90921388,170.3,170.27,5.8708]
[1748454160864,0.03921388,170.3,170.28,5.8703]
[1748454161267,0.03921388,170.3,170.26,0.03865213]
[1748454162262,0.03921388,170.3,170.27,5.8708]
[1748454162658,0.03921388,170.3,170.26,0.03865213]
[1748454163365,5.871,170.27,170.26,0.03865213]
[1748454165567,5.8708,170.28,170.26,0.03865213]
[1748454165967,30.12,170.29,170.26,0.03865213]
[1748454166270,35.9904,170.29,170.26,5.90995213]
[1748454167174,30.12,170.29,170.27,5.871]
[1748454167383,0.03921388,170.3,170.26,0.03865213]
[1748454167877,0.03921388,170.3,170.28,5.8705]
[1748454168073,0.03921388,170.3,170.26,0.03865213]
[1748454168469,0.03921388,170.3,170.29,5.8703]
[1748454170874,0.03921388,170.3,170.26,0.03865213]
[1748454171572,5.8705,170.29,170.27,5.871]
[1748454171770,0.03921388,170.3,170.27,5.871]
[1748454172277,5.90941388,170.3,170.27,5.871]
[1748454172474,5.90941388,170.3,170.28,5.8706]
[1748454172679,0.03921388,170.3,170.28,5.8706]
[1748454173178,0.03921388,170.3,170.29,5.8703]
[1748454174875,0.03921388,170.3,170.26,0.03865213]
[1748454175977,0.03921388,170.3,170.27,5.8709]
[1748454176180,0.03921388,170.3,170.26,0.03865213]
[1748454177184,0.03921388,170.3,170.28,5.8705]
[1748454178184,0.03921388,170.3,170.29,5.8703]
[1748454180981,5.90921388,170.3,170.28,5.8706]
[1748454181184,0.03921388,170.3,170.28,5.8706]
[1748454182086,0.03921388,170.3,170.29,5.8703]
[1748454182988,0.03921388,170.3,170.28,5.8705]
[1748454184685,5.90921388,170.3,170.28,5.8705]
[1748454184882,0.03921388,170.3,170.26,0.03865213]
[1748454185282,0.03921388,170.3,170.28,5.8704]
[1748454185989,0.03921388,170.3,170.26,0.03865213]
[1748454186589,5.8705,170.29,170.27,5.871]
[1748454187989,5.871,170.27,170.26,0.03865213]
[1748454190093,0.03921388,170.3,170.26,0.03865213]
[1748454190391,0.03921388,170.3,170.28,5.8705]
[1748454190584,0.03921388,170.3,170.26,0.03865213]
[1748454192496,0.03921388,170.3,170.27,5.8707]
[1748454192696,0.03921388,170.3,170.26,0.03865213]
[1748454193198,0.03921388,170.3,170.28,5.8705]
[1748454194198,0.03921388,170.3,170.29,5.8703]
[1748454194688,0.03921388,170.3,170.28,5.8705]
[1748454195896,0.03921388,170.3,170.26,0.03865213]
[1748454195897,5.90931388,170.3,170.26,0.03865213]
[1748454196101,0.03921388,170.3,170.26,0.03865213]
[1748454196397,0.03921388,170.3,170.27,5.8707]
[1748454196597,0.03921388,170.3,170.26,0.03865213]
[1748454196898,0.03921388,170.3,170.28,5.8705]
[1748454199394,0.03921388,170.3,170.29,5.8703]
[1748454202701,0.03921388,170.3,170.28,5.8705]
[1748454203396,0.03921388,170.3,170.29,5.8703]
[1748454203997,0.03921388,170.3,170.28,5.8705]
[1748454205505,5.90931388,170.3,170.27,5.8708]
[1748454205699,5.90931388,170.3,170.26,0.03865213]
[1748454206301,5.8705,170.29,170.26,0.03865213]
[1748454206503,0.03921388,170.3,170.26,0.03865213]
[1748454206906,5.90931388,170.3,170.27,5.8708]
[1748454207306,5.90931388,170.3,170.26,0.03865213]
[1748454207507,0.03921388,170.3,170.28,5.8707]
[1748454207704,0.03921388,170.3,170.26,0.03865213]
[1748454208109,5.90921388,170.3,170.27,5.8707]
[1748454208405,0.03921388,170.3,170.27,5.8707]
[1748454208813,5.90931388,170.3,170.27,5.8707]
[1748454209408,5.90931388,170.3,170.28,5.8705]
[1748454210211,0.03921388,170.3,170.29,5.8703]
[1748454211010,0.03921388,170.3,170.28,5.8705]
[1748454212515,0.03921388,170.3,170.29,5.8703]
[1748454218510,0.03921388,170.3,170.26,0.03865213]
[1748454219513,0.03921388,170.3,170.29,5.8703]
[1748454224421,5.868,170.36,170.33,5.8687]
[1748454224817,35.9477,170.37,170.28,30.08]
[1748454225212,30.08,170.37,170.35,5.8682]
[1748454226419,30.08,170.37,170.36,5.8679]
[1748454226619,0.04386636,170.38,170.34,0.0378503]
[1748454227923,0.04386636,170.38,170.37,5.8676]
[1748454228126,0.04386636,170.38,170.34,0.0378503]
[1748454228324,0.04386636,170.38,170.34,5.9061503]
[1748454228621,5.8676,170.37,170.34,5.9061503]
[1748454229024,0.04386636,170.38,170.35,5.8682]
[1748454229825,5.91136636,170.38,170.35,5.8682]
[1748454230227,0.04386636,170.38,170.34,5.9063503]
[1748454230927,5.8676,170.37,170.34,5.9063503]
[1748454231427,5.91126636,170.38,170.34,5.9063503]